fUST/lending_fUST_20250608
["ID","MTS","AMOUNT","RATE_DAILY","PERIOD"]
[364938954,1749323245403,-440.0,0.00019583,2]
[364938955,1749323245426,-410.0,0.00019583,2]
[364938956,1749323245447,-477.35824121,0.00019583,2]
[364938957,1749323245473,-440.0,0.00019583,2]
[364938958,1749323245495,-430.0,0.00019583,2]
[364938959,1749323245520,-440.0,0.00019583,2]
[364938960,1749323245543,-500.0,0.00019583,2]
[364938961,1749323245567,-440.0,0.00019583,2]
[364938962,1749323245589,-440.0,0.00019583,2]
[364938963,1749323245613,-299.08,0.00019583,2]
[364938964,1749323245638,-440.0,0.00019583,2]
[364938965,1749323245660,-440.0,0.00019583,2]
[364938966,1749323245683,-420.0,0.00019584,2]
[364938967,1749323245705,-440.0,0.00019584,2]
[364938968,1749323245728,-440.0,0.00019584,2]
[364938969,1749323245751,-256.75458852,0.00019584,2]
[364938970,1749323245772,-440.0,0.00019584,2]
[364938971,1749323245793,-440.0,0.00019584,2]
[364938972,1749323245816,-440.0,0.00019584,2]
[364938973,1749323245838,-440.0,0.00019584,2]
[364938974,1749323245859,-284.28837225,0.00019584,2]
[364938975,1749323245881,-312.36548307,0.00019584,2]
[364938976,1749323245903,-440.0,0.00019584,2]
[364938977,1749323245924,-440.0,0.00019584,2]
[364938978,1749323245946,-500.0,0.00019584,2]
[364938979,1749323245968,-427.78821369,0.00019584,2]
[364938980,1749323245989,-440.0,0.00019584,2]
[364938981,1749323246010,-430.0,0.00019584,2]
[364938982,1749323246032,-126.31320311,0.00019584,2]
[364938983,1749323246122,-303.68679689,0.00019584,2]
[364938984,1749323246144,-204.60078738,0.00019584,2]
[364938990,1749323275073,312.51732287,0.000189,2]
[364939004,1749323347152,-164.90024096,0.00019481,2]
[364939005,1749323347173,-500.0,0.00019573,2]
[364939006,1749323347195,-246.59228145,0.00019581,2]
[364939007,1749323350148,-173.40771855,0.00019581,2]
[364939008,1749323350173,-1357.39,0.00019581,2]
[364939009,1749323350199,-440.0,0.00019582,2]
[364939010,1749323350222,-440.0,0.00019582,2]
[364939011,1749323350245,-477.47,0.00019582,2]
[364939012,1749323350266,-430.0,0.00019582,2]
[364939013,1749323350290,-430.0,0.00019583,2]
[364939014,1749323350311,-440.0,0.00019583,2]
[364939015,1749323350332,-318.45205366,0.00019583,2]
[364939016,1749323350352,-430.0,0.00019583,2]
[364939017,1749323350373,-420.0,0.00019583,2]
[364939018,1749323350393,-430.0,0.00019583,2]
[364939019,1749323350416,-440.0,0.00019583,2]
[364939020,1749323350438,-440.0,0.00019583,2]
[364939021,1749323350458,-275.24297421,0.00019583,2]
[364939022,1749323350478,-225.39921262,0.00019583,2]
[364939023,1749323350499,-440.0,0.00019583,2]
[364939024,1749323350520,-440.0,0.00019583,2]
[364939025,1749323350545,-430.0,0.00019583,2]
[364939026,1749323350565,-440.0,0.00019583,2]
[364939027,1749323350586,-440.0,0.00019583,2]
[364939028,1749323350608,-179.70878645,0.00019583,2]
[364939029,1749323350629,-421.32286601,0.00019583,2]
[364939030,1749323350650,-430.0,0.00019583,2]
[364939031,1749323350670,-430.0,0.00019583,2]
[364939032,1749323350695,-431.60087394,0.00019583,2]
[364939033,1749323350717,-440.0,0.00019583,2]
[364939034,1749323350738,-440.0,0.00019583,2]
[364939035,1749323350758,-440.0,0.00019583,2]
[364939036,1749323350779,-440.0,0.00019583,2]
[364939037,1749323350800,-440.0,0.00019583,2]
[364939038,1749323350820,-440.0,0.00019583,2]
[364939039,1749323350841,-440.0,0.00019583,2]
[364939040,1749323350863,-430.0,0.00019583,2]
[364939041,1749323350884,-433.11650091,0.00019583,2]
[364939042,1749323350905,-430.0,0.00019583,2]
[364939043,1749323350927,-440.0,0.00019583,2]
[364939044,1749323350949,-440.0,0.00019583,2]
[364939045,1749323350981,-368.63900259,0.00019583,2]
[364939046,1749323351006,-440.0,0.00019583,2]
[364939047,1749323351029,-440.0,0.00019583,2]
[364939048,1749323351051,-430.0,0.00019583,2]
[364939049,1749323351074,-537.80320184,0.00019583,2]
[364939050,1749323351098,-500.0,0.00019583,2]
[364939051,1749323351121,-500.0,0.00019583,2]
[364939052,1749323351144,-500.0,0.00019583,2]
[364939053,1749323351167,-500.0,0.00019583,2]
[364939054,1749323351190,-169.70345848,0.00019583,2]
[364939055,1749323351213,-283.98825456,0.00019583,2]
[364939056,1749323351234,-440.0,0.00019583,2]
[364939057,1749323351259,-430.0,0.00019583,2]
[364939058,1749323351280,-430.0,0.00019583,2]
[364939059,1749323351302,-503.38348183,0.00019583,2]
[364939060,1749323351328,-430.0,0.00019583,2]
[364939061,1749323351352,-440.0,0.00019583,2]
[364939062,1749323351377,-440.0,0.00019583,2]
[364939063,1749323351404,-440.0,0.00019583,2]
[364939064,1749323351426,-430.46977629,0.00019583,2]
[364939065,1749323351449,-440.0,0.00019583,2]
[364939066,1749323351470,-440.0,0.00019583,2]
[364939067,1749323351491,-440.0,0.00019583,2]
[364939068,1749323351514,-464.28194219,0.00019583,2]
[364939069,1749323351540,-440.0,0.00019583,2]
[364939070,1749323351563,-440.0,0.00019583,2]
[364939071,1749323351585,-440.0,0.00019583,2]
[364939072,1749323351610,-440.0,0.00019583,2]
[364939073,1749323351634,-440.0,0.00019583,2]
[364939074,1749323351658,-440.0,0.00019584,2]
[364939075,1749323351680,-430.0,0.00019584,2]
[364939076,1749323351709,-440.0,0.00019584,2]
[364939077,1749323351735,-440.0,0.00019584,2]
[364939078,1749323351760,-440.0,0.00019584,2]
[364939079,1749323351784,-430.0,0.00019584,2]
[364939080,1749323351974,-440.0,0.00019584,2]
[364939081,1749323351997,-440.0,0.00019584,2]
[364939082,1749323352019,-430.0,0.00019584,2]
[364939083,1749323352041,-440.0,0.00019584,2]
[364939084,1749323352064,-440.0,0.00019584,2]
[364939085,1749323352086,-440.0,0.00019584,2]
[364939086,1749323352107,-430.0,0.00019584,2]
[364939087,1749323352130,-440.0,0.00019584,2]
[364939088,1749323352151,-430.0,0.00019584,2]
[364939089,1749323352171,-430.0,0.00019584,2]
[364939090,1749323352193,-430.0,0.00019584,2]
[364939091,1749323352216,-430.0,0.00019584,2]
[364939092,1749323352237,-500.0,0.00019584,2]
[364939093,1749323352260,-430.0,0.00019584,2]
[364939094,1749323352283,-370.0,0.00019584,2]
[364939095,1749323352303,-440.0,0.00019584,2]
[364939096,1749323352327,-251.47734856,0.00019584,2]
[364939097,1749323352348,-440.0,0.00019584,2]
[364939098,1749323352369,-440.0,0.00019584,2]
[364939099,1749323352393,-500.0,0.00019584,2]
[364939100,1749323352414,-440.0,0.00019584,2]
[364939101,1749323352435,-400.0,0.00019584,2]
[364939102,1749323352456,-293.26278009,0.00019584,2]
[364939103,1749323352476,-430.0,0.00019584,2]
[364939104,1749323352497,-440.0,0.00019584,2]
[364939105,1749323352518,-430.0,0.00019584,2]
[364939106,1749323352544,-430.0,0.00019584,2]
[364939107,1749323352566,-430.0,0.00019584,2]
[364939108,1749323352586,-430.0,0.00019584,2]
[364939109,1749323352610,-440.0,0.00019584,2]
[364939110,1749323352631,-440.0,0.00019584,2]
[364939111,1749323352653,-430.0,0.00019584,2]
[364939112,1749323352674,-430.0,0.00019584,2]
[364939113,1749323352697,-440.0,0.00019584,2]
[364939114,1749323352717,-440.0,0.00019584,2]
[364939115,1749323352738,-430.0,0.00019584,2]
[364939116,1749323352759,-440.0,0.00019584,2]
[364939117,1749323352780,-430.0,0.00019584,2]
[364939118,1749323352803,-440.0,0.00019584,2]
[364939119,1749323352825,-430.0,0.00019584,2]
[364939120,1749323352847,-440.0,0.00019584,2]
[364939121,1749323352871,-430.0,0.00019584,2]
[364939122,1749323352893,-440.0,0.00019584,2]
[364939123,1749323352919,-440.0,0.00019584,2]
[364939124,1749323352939,-440.0,0.00019584,2]
[364939125,1749323352962,-440.0,0.00019584,2]
[364939126,1749323352984,-440.0,0.00019584,2]
[364939127,1749323353004,-430.0,0.00019584,2]
[364939128,1749323353027,-430.0,0.00019584,2]
[364939129,1749323353048,-430.0,0.00019584,2]
[364939130,1749323353071,-440.0,0.00019584,2]
[364939131,1749323353093,-430.0,0.00019584,2]
[364939132,1749323353114,-443.70170323,0.00019584,2]
[364939133,1749323353135,-440.0,0.00019584,2]
[364939134,1749323353156,-440.0,0.00019584,2]
[364939135,1749323353178,-440.0,0.00019584,2]
[364939136,1749323353198,-400.0,0.00019584,2]
[364939137,1749323353218,-430.0,0.00019584,2]
[364939138,1749323353240,-440.0,0.00019584,2]
[364939139,1749323353261,-488.63117572,0.00019584,2]
[364939140,1749323353283,-440.0,0.00019584,2]
[364939141,1749323353304,-440.0,0.00019584,2]
[364939142,1749323353325,-440.0,0.00019584,2]
[364939143,1749323353348,-440.0,0.00019584,2]
[364939144,1749323353369,-519.43550227,0.00019584,2]
[364939145,1749323353391,-430.49222869,0.00019584,2]
[364939146,1749323353414,-440.0,0.00019584,2]
[364939147,1749323353436,-440.0,0.00019584,2]
[364939148,1749323353457,-440.0,0.00019584,2]
[364939149,1749323353479,-440.0,0.00019584,2]
[364939150,1749323353500,-440.0,0.00019584,2]
[364939151,1749323353522,-469.04087542,0.00019584,2]
[364939152,1749323353548,-440.0,0.00019584,2]
[364939153,1749323353570,-440.0,0.00019584,2]
[364939154,1749323353590,-440.0,0.00019584,2]
[364939155,1749323353612,-440.0,0.00019584,2]
[364939156,1749323353633,-430.0,0.00019584,2]
[364939157,1749323353654,-440.0,0.00019584,2]
[364939158,1749323353676,-440.0,0.00019584,2]
[364939159,1749323353698,-430.0,0.00019584,2]
[364939160,1749323353719,-430.0,0.00019584,2]
[364939161,1749323353740,-440.0,0.00019584,2]
[364939162,1749323353762,-243.68424395,0.00019584,2]
[364939163,1749323353783,-440.0,0.00019584,2]
[364939164,1749323353805,-430.0,0.00019584,2]
[364939165,1749323353827,-440.0,0.00019584,2]
[364939166,1749323353849,-440.0,0.00019584,2]
[364939167,1749323353871,-440.0,0.00019584,2]
[364939168,1749323353894,-460.0,0.00019598,2]
[364939169,1749323353915,-440.0,0.00019598,2]
[364939170,1749323353937,-430.0,0.00019598,2]
[364939171,1749323353959,-420.0,0.00019598,2]
[364939172,1749323353983,-1357.39,0.00019855,2]
[364939173,1749323354008,-441.43957263,0.00019856,2]
[364939174,1749323354033,-440.0,0.00019856,2]
[364939175,1749323354057,-440.0,0.00019856,2]
[364939176,1749323354083,-440.0,0.00019856,2]
[364939177,1749323354107,-440.0,0.00019856,2]
[364939178,1749323354131,-440.0,0.00019856,2]
[364939179,1749323354153,-551.91646431,0.00019856,2]
[364939180,1749323354177,-440.0,0.00019856,2]
[364939181,1749323354200,-440.0,0.00019856,2]
[364939182,1749323354223,-440.0,0.00019856,2]
[364939183,1749323354245,-440.0,0.00019856,2]
[364939184,1749323354268,-440.0,0.00019856,2]
[364939185,1749323354292,-440.0,0.00019856,2]
[364939186,1749323354315,-420.0,0.00019857,2]
[364939187,1749323354339,-440.0,0.00019857,2]
[364939188,1749323354361,-440.0,0.00019857,2]
[364939189,1749323354392,-348.99036104,0.00019857,2]
[364939190,1749323354422,-440.0,0.00019857,2]
[364939191,1749323354445,-440.0,0.00019857,2]
[364939192,1749323354469,-440.0,0.00019857,2]
[364939193,1749323354491,-440.0,0.00019857,2]
[364939194,1749323354513,-430.0,0.00019857,2]
[364939195,1749323354539,-440.0,0.00019857,2]
[364939196,1749323354562,-440.0,0.00019857,2]
[364939197,1749323354586,-440.0,0.00019857,2]
[364939198,1749323354607,-440.0,0.00019857,2]
[364939199,1749323354630,-440.0,0.00019857,2]
[364939200,1749323354652,-433.32882922,0.00019857,2]
[364939201,1749323354673,-440.0,0.00019857,2]
[364939202,1749323354697,-440.0,0.00019857,2]
[364939203,1749323354720,-440.0,0.00019857,2]
[364939204,1749323354746,-440.0,0.00019857,2]
[364939205,1749323354770,-430.0,0.00019857,2]
[364939206,1749323354793,-430.0,0.00019857,2]
[364939207,1749323354815,-440.0,0.00019857,2]
[364939208,1749323354837,-440.0,0.00019857,2]
[364939209,1749323354859,-440.0,0.00019857,2]
[364939210,1749323354881,-430.0,0.00019857,2]
[364939211,1749323354904,-430.0,0.00019857,2]
[364939212,1749323354926,-440.0,0.00019857,2]
[364939213,1749323354950,-440.0,0.00019857,2]
[364939214,1749323354972,-420.0,0.00019857,2]
[364939215,1749323354993,-430.0,0.00019857,2]
[364939216,1749323355015,-582.12,0.00019857,2]
[364939217,1749323355038,-440.0,0.00019857,2]
[364939218,1749323355060,-440.0,0.00019857,2]
[364939219,1749323355082,-430.0,0.00019857,2]
[364939220,1749323355103,-440.0,0.00019857,2]
[364939221,1749323355125,-430.0,0.00019857,2]
[364939222,1749323355148,-440.0,0.00019857,2]
[364939223,1749323355170,-400.0,0.00019857,2]
[364939224,1749323355192,-440.0,0.00019857,2]
[364939225,1749323355213,-440.0,0.00019857,2]
[364939226,1749323355234,-440.0,0.00019857,2]
[364939227,1749323355255,-430.0,0.00019857,2]
[364939228,1749323355277,-430.0,0.00019857,2]
[364939229,1749323355300,-440.0,0.00019857,2]
[364939230,1749323355321,-309.87561211,0.00019857,2]
[364939231,1749323355343,-440.0,0.00019857,2]
[364939232,1749323355366,-440.0,0.00019857,2]
[364939233,1749323355536,-380.0,0.00019857,2]
[364939234,1749323355558,-420.0,0.00019857,2]
[364939235,1749323355581,-440.0,0.00019857,2]
[364939236,1749323355603,-440.0,0.00019857,2]
[364939237,1749323355625,-440.0,0.00019857,2]
[364939238,1749323355647,-430.0,0.00019857,2]
[364939239,1749323355667,-440.0,0.00019857,2]
[364939240,1749323355692,-448.19,0.00019857,2]
[364939241,1749323355715,-251.37758368,0.00019857,2]
[364939242,1749323355738,-440.0,0.00019857,2]
[364939243,1749323355759,-400.0,0.00019857,2]
[364939244,1749323355782,-440.0,0.00019857,2]
[364939245,1749323355806,-440.0,0.00019857,2]
[364939246,1749323355829,-430.0,0.00019857,2]
[364939247,1749323355852,-440.0,0.00019857,2]
[364939248,1749323355876,-447.15891941,0.00019857,2]
[364939249,1749323355899,-430.0,0.00019857,2]
[364939250,1749323355922,-545.62,0.00019857,2]
[364939251,1749323355944,-440.0,0.00019857,2]
[364939252,1749323355967,-440.0,0.00019857,2]
[364939253,1749323355989,-430.0,0.00019857,2]
[364939254,1749323356010,-203.19272075,0.00019857,2]
[364939255,1749323356032,-430.0,0.00019857,2]
[364939256,1749323356055,-410.0,0.00019857,2]
[364939257,1749323356077,-440.0,0.00019857,2]
[364939258,1749323356098,-440.0,0.00019857,2]
[364939259,1749323356121,-440.0,0.00019857,2]
[364939260,1749323356145,-440.0,0.00019857,2]
[364939261,1749323356167,-440.0,0.00019857,2]
[364939262,1749323356189,-440.0,0.00019857,2]
[364939263,1749323356212,-440.0,0.00019857,2]
[364939264,1749323356234,-440.0,0.00019857,2]
[364939265,1749323356256,-440.0,0.00019857,2]
[364939266,1749323356280,-440.0,0.00019857,2]
[364939267,1749323356300,-440.0,0.00019857,2]
[364939268,1749323356322,-223.29750905,0.00019857,2]
[364939269,1749323356344,-394.0415995,0.00019857,2]
[364939270,1749323356368,-440.0,0.00019857,2]
[364939271,1749323356393,-440.0,0.00019857,2]
[364939272,1749323356417,-440.0,0.00019857,2]
[364939273,1749323356439,-440.0,0.00019857,2]
[364939274,1749323356461,-430.77599743,0.00019857,2]
[364939275,1749323356486,-440.0,0.00019857,2]
[364939276,1749323356509,-380.0,0.00019857,2]
[364939277,1749323356533,-430.0,0.00019857,2]
[364939278,1749323356554,-427.07784457,0.00019857,2]
[364939279,1749323356577,-440.0,0.00019857,2]
[364939280,1749323356602,-440.0,0.00019857,2]
[364939281,1749323356624,-440.0,0.00019857,2]
[364939282,1749323356646,-365.70930523,0.00019857,2]
[364939283,1749323356670,-420.0,0.00019857,2]
[364939284,1749323356696,-440.0,0.00019857,2]
[364939285,1749323356717,-430.0,0.00019857,2]
[364939286,1749323356742,-440.0,0.00019857,2]
[364939287,1749323356765,-440.0,0.00019857,2]
[364939288,1749323356787,-440.0,0.00019858,2]
[364939289,1749323356810,-420.0,0.00019858,2]
[364939290,1749323356831,-430.0,0.00019858,2]
[364939291,1749323356854,-440.0,0.00019858,2]
[364939292,1749323356874,-440.0,0.00019858,2]
[364939293,1749323356895,-447.69367326,0.00019858,2]
[364939294,1749323356916,-420.0,0.00019858,2]
[364939295,1749323356938,-440.0,0.00019858,2]
[364939296,1749323356967,-430.0,0.00019858,2]
[364939297,1749323356988,-440.0,0.00019858,2]
[364939298,1749323357009,-440.0,0.00019858,2]
[364939299,1749323357030,-440.0,0.00019858,2]
[364939300,1749323357051,-430.0,0.00019858,2]
[364939301,1749323357073,-420.0,0.00019858,2]
[364939302,1749323357095,-420.0,0.00019858,2]
[364939303,1749323357117,-440.0,0.00019858,2]
[364939304,1749323357138,-440.0,0.00019858,2]
[364939305,1749323357158,-286.54104373,0.00019858,2]
[364939306,1749323357180,-420.0,0.00019858,2]
[364939307,1749323357201,-265.00357188,0.00019858,2]
[364939308,1749323357222,-440.0,0.00019858,2]
[364939309,1749323357243,-410.0,0.00019858,2]
[364939310,1749323357266,-430.0,0.00019858,2]
[364939311,1749323357287,-440.0,0.00019858,2]
[364939312,1749323357309,-440.0,0.00019858,2]
[364939313,1749323357330,-440.0,0.00019858,2]
[364939314,1749323357351,-363.88889079,0.00019858,2]
[364939315,1749323357372,-440.0,0.00019858,2]
[364939316,1749323357394,-440.0,0.00019858,2]
[364939317,1749323357415,-440.0,0.00019858,2]
[364939318,1749323357437,-302.23399977,0.00019858,2]
[364939319,1749323357458,-440.0,0.00019858,2]
[364939320,1749323357479,-440.0,0.00019858,2]
[364939321,1749323357500,-440.0,0.00019858,2]
[364939322,1749323357521,-440.0,0.00019858,2]
[364939323,1749323357546,-440.0,0.00019858,2]
[364939324,1749323357567,-440.0,0.00019858,2]
[364939325,1749323357590,-507.94716466,0.00019858,2]
[364939326,1749323357611,-440.0,0.00019858,2]
[364939327,1749323357633,-440.0,0.00019872,2]
[364939328,1749323357655,-500.0,0.00020056,2]
[364939329,1749323357676,-190.0,0.00020121,2]
[364939330,1749323357699,-1357.39,0.00020129,2]
[364939331,1749323357724,-440.0,0.0002013,2]
[364939332,1749323357746,-319.22,0.0002013,2]
[364939333,1749323357772,-440.0,0.0002013,2]
[364939334,1749323357795,-440.0,0.0002013,2]
[364939335,1749323357819,-440.0,0.0002013,2]
[364939336,1749323357842,-420.0,0.0002013,2]
[364939337,1749323357863,-440.0,0.00020131,2]
[364939338,1749323357885,-440.0,0.00020131,2]
[364939339,1749323357907,-440.0,0.00020131,2]
[364939340,1749323357929,-440.0,0.00020131,2]
[364939341,1749323357950,-430.0,0.00020131,2]
[364939342,1749323357971,-440.0,0.00020131,2]
[364939343,1749323357994,-420.0,0.00020131,2]
[364939344,1749323358016,-440.0,0.00020131,2]
[364939345,1749323358038,-440.0,0.00020131,2]
[364939346,1749323358062,-400.0,0.00020131,2]
[364939347,1749323358084,-410.0,0.00020131,2]
[364939348,1749323358107,-430.0,0.00020131,2]
[364939349,1749323358128,-440.0,0.00020131,2]
[364939350,1749323358151,-373.0,0.00020131,2]
[364939351,1749323358172,-440.0,0.00020131,2]
[364939352,1749323358195,-420.0,0.00020131,2]
[364939353,1749323358217,-440.0,0.00020131,2]
[364939354,1749323358239,-360.0,0.00020131,2]
[364939355,1749323358262,-440.0,0.00020131,2]
[364939356,1749323358285,-420.0,0.00020131,2]
[364939357,1749323358307,-440.0,0.00020131,2]
[364939358,1749323358329,-440.0,0.00020131,2]
[364939359,1749323358351,-420.0,0.00020131,2]
[364939360,1749323358373,-440.0,0.00020131,2]
[364939361,1749323358395,-430.0,0.00020131,2]
[364939362,1749323358418,-440.0,0.00020131,2]
[364939363,1749323358438,-440.0,0.00020131,2]
[364939364,1749323358460,-440.0,0.00020131,2]
[364939365,1749323358481,-440.0,0.00020131,2]
[364939366,1749323358503,-565.65118638,0.00020131,2]
[364939367,1749323358529,-448.19,0.00020131,2]
[364939368,1749323358556,-440.0,0.00020131,2]
[364939369,1749323358578,-440.0,0.00020131,2]
[364939370,1749323358600,-440.0,0.00020131,2]
[364939371,1749323358626,-440.0,0.00020131,2]
[364939372,1749323358647,-363.70752502,0.00020131,2]
[364939373,1749323358670,-440.0,0.00020131,2]
[364939374,1749323358694,-375.79130909,0.00020131,2]
[364939375,1749323358718,-440.0,0.00020131,2]
[364939376,1749323358743,-562.69911654,0.00020131,2]
[364939377,1749323358764,-440.0,0.00020131,2]
[364939378,1749323358788,-492.2,0.00020131,2]
[364939379,1749323358928,-440.0,0.00020131,2]
[364939380,1749323358953,-350.0,0.00020131,2]
[364939381,1749323358975,-388.01559873,0.00020131,2]
[364939382,1749323358998,-420.0,0.00020131,2]
[364939383,1749323359019,-410.0,0.00020131,2]
[364939384,1749323359045,-476.63655515,0.00020131,2]
[364939385,1749323359067,-422.63538322,0.00020131,2]
[364939386,1749323359091,-440.0,0.00020131,2]
[364939387,1749323359114,-440.0,0.00020131,2]
[364939388,1749323359138,-440.0,0.00020131,2]
[364939389,1749323359161,-322.43386198,0.00020131,2]
[364939390,1749323359185,-440.0,0.00020131,2]
[364939391,1749323359207,-440.0,0.00020131,2]
[364939392,1749323359230,-440.0,0.00020132,2]
[364939393,1749323359253,-440.0,0.00020132,2]
[364939394,1749323359276,-440.0,0.00020132,2]
[364939395,1749323359299,-440.0,0.00020132,2]
[364939396,1749323359322,-440.0,0.00020132,2]
[364939397,1749323359344,-440.0,0.00020132,2]
[364939398,1749323359368,-440.0,0.00020132,2]
[364939399,1749323359390,-440.0,0.00020132,2]
[364939400,1749323359415,-440.0,0.00020132,2]
[364939401,1749323359438,-440.0,0.00020132,2]
[364939402,1749323359460,-410.0,0.00020132,2]
[364939403,1749323359483,-440.0,0.00020132,2]
[364939404,1749323359508,-292.06786946,0.00020132,2]
[364939405,1749323359536,-490.85617009,0.00020132,2]
[364939406,1749323359558,-440.0,0.00020132,2]
[364939407,1749323359581,-430.0,0.00020132,2]
[364939408,1749323359605,-430.0,0.00020132,2]
[364939409,1749323359631,-430.0,0.00020132,2]
[364939410,1749323359652,-416.0858894,0.00020132,2]
[364939411,1749323359674,-440.0,0.00020132,2]
[364939412,1749323359697,-440.0,0.00020132,2]
[364939413,1749323359719,-172.049,0.00020245,2]
[364939414,1749323359742,-500.0,0.00020266,2]
[364939415,1749323359765,-500.0,0.00020288,2]
[364939416,1749323359790,-984.96771787,0.00020312,2]
[364939417,1749323359812,-501.8360678,0.0002032,2]
[364939418,1749323359837,-1357.39,0.00020403,2]
[364939419,1749323359861,-440.0,0.00020404,2]
[364939420,1749323359885,-440.0,0.00020404,2]
[364939421,1749323359908,-440.0,0.00020404,2]
[364939422,1749323359933,-440.0,0.00020404,2]
[364939423,1749323359955,-420.0,0.00020405,2]
[364939424,1749323359978,-384.15739841,0.00020405,2]
[364939425,1749323359999,-440.0,0.00020405,2]
[364939426,1749323360022,-440.0,0.00020405,2]
[364939427,1749323360045,-410.0,0.00020405,2]
[364939428,1749323360066,-440.0,0.00020405,2]
[364939429,1749323360089,-437.40063294,0.00020405,2]
[364939430,1749323360112,-448.19,0.00020405,2]
[364939431,1749323360135,-150.94,0.00020405,2]
[364939432,1749323360156,-420.0,0.00020405,2]
[364939433,1749323360178,-430.0,0.00020405,2]
[364939434,1749323360203,-440.0,0.00020405,2]
[364939435,1749323360224,-440.0,0.00020405,2]
[364939436,1749323360246,-551.44090945,0.00020405,2]
[364939437,1749323360268,-444.92,0.00020405,2]
[364939438,1749323360291,-440.0,0.00020405,2]
[364939439,1749323360312,-440.0,0.00020405,2]
[364939440,1749323360334,-440.0,0.00020406,2]
[364939441,1749323360355,-440.0,0.00020406,2]
[364939442,1749323360378,-440.0,0.00020406,2]
[364939443,1749323360399,-440.0,0.00020406,2]
[364939444,1749323360420,-400.0,0.00020406,2]
[364939445,1749323360441,-440.0,0.00020406,2]
[364939446,1749323360461,-440.0,0.00020406,2]
[364939447,1749323360481,-440.0,0.00020406,2]
[364939448,1749323360503,-440.0,0.00020406,2]
[364939449,1749323360524,-430.89750212,0.00020406,2]
[364939450,1749323360550,-34.31475741,0.00020406,2]
[364939451,1749323360686,-296.59653299,0.00020406,2]
[364939452,1749323360710,-1357.39,0.00020677,2]
[364939453,1749323360733,-440.0,0.00020678,2]
[364939454,1749323360756,-440.0,0.00020678,2]
[364939455,1749323360779,-440.0,0.00020678,2]
[364939456,1749323360801,-440.0,0.00020678,2]
[364939457,1749323360822,-448.19,0.00020679,2]
[364939458,1749323360846,-440.0,0.00020679,2]
[364939459,1749323360866,-440.0,0.00020679,2]
[364939460,1749323360888,-440.0,0.00020679,2]
[364939461,1749323360909,-440.0,0.0002068,2]
[364939462,1749323360931,-410.0,0.0002068,2]
[364939463,1749323360954,-536.1,0.000207,2]
[364939464,1749323360974,-423.90693687,0.00020717,2]
[364939465,1749323360994,-834.52263295,0.00020717,2]
[364939466,1749323361014,-229.56495552,0.00020717,2]
[364939467,1749323361036,-500.0,0.00020855,2]
[364939468,1749323361058,-1357.39,0.00020951,2]
[364939469,1749323361080,-440.0,0.00020952,2]
[364939470,1749323361103,-440.0,0.00020952,2]
[364939471,1749323361126,-440.0,0.00020952,2]